[Event "*** Titled Tuesday Blitz"]
[Site "Chess.com"]
[Date "2020.05.26"]
[Round "8"]
[White "Paralinch"]
[Black "kuban1991"]
[Result "1-0"]
[WhiteElo "2878"]
[BlackElo "2713"]
[TimeControl "180+1"]
[EndTime "11:41:28 PDT"]
[Termination "Paralinch won by resignation"]

1. e4 {[%clk 0:03:00.9]} 1... g6 {[%clk 0:02:58.4]} 2. d4 {[%clk 0:03:00.8]}
2... Bg7 {[%clk 0:02:59]} 3. Nf3 {[%clk 0:03:01.4]} 3... c6 {[%clk 0:02:59.3]}
4. c4 {[%clk 0:02:59.6]} 4... d5 {[%clk 0:02:59.7]} 5. exd5 {[%clk 0:03:00.2]}
5... cxd5 {[%clk 0:03:00.6]} 6. Nc3 {[%clk 0:02:56.9]} 6... Nf6 {[%clk
0:02:59.9]} 7. cxd5 {[%clk 0:02:56.7]} 7... O-O {[%clk 0:02:59.5]} 8. Bc4 {[%clk
0:02:56.8]} 8... Na6 {[%clk 0:02:50.6]} 9. O-O {[%clk 0:02:52.2]} 9... Nc7
{[%clk 0:02:50]} 10. Qb3 {[%clk 0:02:52.2]} 10... b5 {[%clk 0:02:17.5]} 11. Nxb5
{[%clk 0:02:52.1]} 11... Rb8 {[%clk 0:02:16.8]} 12. Qd3 {[%clk 0:02:45.6]} 12...
Nxb5 {[%clk 0:02:13.8]} 13. Bxb5 {[%clk 0:02:45.6]} 13... Nxd5 {[%clk
0:02:04.4]} 14. Bc4 {[%clk 0:02:39.2]} 14... Bf5 {[%clk 0:01:55.2]} 15. Qe2
{[%clk 0:02:38]} 15... Qd6 {[%clk 0:01:53.5]} 16. Bg5 {[%clk 0:02:16.6]} 16...
e6 {[%clk 0:01:32.4]} 17. b3 {[%clk 0:02:04.6]} 17... h6 {[%clk 0:01:29.6]} 18.
Bh4 {[%clk 0:02:04.6]} 18... Nf4 {[%clk 0:01:26.9]} 19. Qd2 {[%clk 0:02:01.1]}
19... g5 {[%clk 0:01:26.7]} 20. Bg3 {[%clk 0:02:01.2]} 20... Rfd8 {[%clk
0:01:27.1]} 21. Rad1 {[%clk 0:01:57.3]} 21... Rb7 {[%clk 0:01:18.7]} 22. Qe3
{[%clk 0:01:26.3]} 22... Rbd7 {[%clk 0:01:15.6]} 23. h3 {[%clk 0:01:26.5]} 23...
Bg6 {[%clk 0:01:04.5]} 24. Rd2 {[%clk 0:01:20.5]} 24... Bh5 {[%clk 0:01:03.8]}
25. Rfd1 {[%clk 0:01:17.4]} 25... Qc7 {[%clk 0:00:54.9]} 26. d5 {[%clk 0:00:55]}
26... exd5 {[%clk 0:00:47.2]} 27. Bxd5 {[%clk 0:00:55.1]} 27... Kh8 {[%clk
0:00:16.9]} 28. Bxf4 {[%clk 0:00:50.7]} 28... gxf4 {[%clk 0:00:17.8]} 29. Qe4
{[%clk 0:00:49.3]} 29... Bg6 {[%clk 0:00:16.9]} 30. Qc4 {[%clk 0:00:46.8]} 30...
Qa5 {[%clk 0:00:16.4]} 31. Bxf7 {[%clk 0:00:39.4]} 31... Bxf7 {[%clk 0:00:11.8]}
32. Rxd7 {[%clk 0:00:36.4]} 32... Rxd7 {[%clk 0:00:12.2]} 33. Qc8+ {[%clk
0:00:35.9]} 33... Kh7 {[%clk 0:00:11.9]} 34. Rxd7 {[%clk 0:00:29.9]} 34... Bh5
{[%clk 0:00:10.8]} 35. Qb7 {[%clk 0:00:18.1]} 35... Qc3 {[%clk 0:00:09.1]} 36.
Qe4+ {[%clk 0:00:17.1]} 36... Bg6 {[%clk 0:00:08.9]} 37. Qxf4 {[%clk 0:00:15.8]}
37... a5 {[%clk 0:00:04.5]} 38. Kh2 {[%clk 0:00:13.6]} 38... Kh8 {[%clk
0:00:04.5]} 39. Rxg7 {[%clk 0:00:10.7]} 39... Qxg7 {[%clk 0:00:04.2]} 40. Qe5
{[%clk 0:00:11.2]} 40... Bb1 {[%clk 0:00:03.9]} 41. a3 {[%clk 0:00:09.9]} 41...
Ba2 {[%clk 0:00:02.8]} 42. b4 {[%clk 0:00:10]} 42... axb4 {[%clk 0:00:03]} 43.
axb4 {[%clk 0:00:10.9]} 43... Qxe5+ {[%clk 0:00:01.8]} 44. Nxe5 {[%clk 0:00:11]}
44... Kg7 {[%clk 0:00:02.7]} 45. Kg3 {[%clk 0:00:11.4]} 45... Kf6 {[%clk
0:00:03.2]} 46. Kf4 {[%clk 0:00:12]} 46... Ke6 {[%clk 0:00:04.1]} 47. g4 {[%clk
0:00:11.8]} 47... Bd5 {[%clk 0:00:03.4]} 48. h4 {[%clk 0:00:11.8]} 1-0

[Event "*** Titled Tuesday Blitz"]
[Site "Chess.com"]
[Date "2020.05.26"]
[Round "8"]
[White "JosefineHeinemann"]
[Black "AlexTriapishko"]
[Result "0-1"]
[WhiteElo "2521"]
[BlackElo "2728"]
[TimeControl "180+1"]
[EndTime "11:41:29 PDT"]
[Termination "AlexTriapishko won by resignation"]

1. e4 {[%clk 0:03:00.9]} 1... c6 {[%clk 0:02:58.4]} 2. d4 {[%clk 0:02:59.7]}
2... d5 {[%clk 0:02:59.3]} 3. Nd2 {[%clk 0:02:58.9]} 3... dxe4 {[%clk
0:02:59.7]} 4. Nxe4 {[%clk 0:02:58.4]} 4... Bf5 {[%clk 0:03:00.4]} 5. Ng3 {[%clk
0:02:57.8]} 5... Bg6 {[%clk 0:03:01]} 6. h4 {[%clk 0:02:55.3]} 6... h6 {[%clk
0:03:01.5]} 7. Nf3 {[%clk 0:02:54.7]} 7... e6 {[%clk 0:03:02.1]} 8. Bd3 {[%clk
0:02:54.4]} 8... Bxd3 {[%clk 0:03:01.7]} 9. Qxd3 {[%clk 0:02:55.3]} 9... Nf6
{[%clk 0:03:01.9]} 10. Bd2 {[%clk 0:02:55.4]} 10... Be7 {[%clk 0:03:02.3]} 11.
O-O-O {[%clk 0:02:55.8]} 11... c5 {[%clk 0:02:56.4]} 12. Qb5+ {[%clk 0:02:47.1]}
12... Qd7 {[%clk 0:02:54.4]} 13. Qxd7+ {[%clk 0:02:46.7]} 13... Nbxd7 {[%clk
0:02:55.3]} 14. dxc5 {[%clk 0:02:47.3]} 14... Bxc5 {[%clk 0:02:51.2]} 15. Rhf1
{[%clk 0:02:43]} 15... O-O {[%clk 0:02:50.9]} 16. Bc3 {[%clk 0:02:40.1]} 16...
Rfd8 {[%clk 0:02:51.4]} 17. a3 {[%clk 0:02:32.1]} 17... Rac8 {[%clk 0:02:41.4]}
18. Kb1 {[%clk 0:02:30]} 18... Nd5 {[%clk 0:02:37.8]} 19. Bd4 {[%clk 0:02:27.1]}
19... Nf4 {[%clk 0:02:32.9]} 20. Rg1 {[%clk 0:02:22.6]} 20... a6 {[%clk
0:02:13.5]} 21. Ne4 {[%clk 0:02:20]} 21... Be7 {[%clk 0:02:13.7]} 22. g3 {[%clk
0:02:14.9]} 22... Ne2 {[%clk 0:02:11.2]} 23. Rge1 {[%clk 0:02:12.5]} 23... Nxd4
{[%clk 0:02:11.7]} 24. Rxd4 {[%clk 0:02:12.9]} 24... Nc5 {[%clk 0:01:53.3]} 25.
Rxd8+ {[%clk 0:01:57]} 25... Rxd8 {[%clk 0:01:54.2]} 26. Nxc5 {[%clk 0:01:57.7]}
26... Bxc5 {[%clk 0:01:53.8]} 27. Rf1 {[%clk 0:01:58.1]} 27... Rd5 {[%clk
0:01:51.7]} 28. g4 {[%clk 0:01:40.7]} 28... h5 {[%clk 0:01:42.8]} 29. Nh2 {[%clk
0:01:39]} 29... Rd2 {[%clk 0:01:28.6]} 30. gxh5 {[%clk 0:01:34.6]} 30... Rxf2
{[%clk 0:01:26.3]} 31. Rxf2 {[%clk 0:01:33.8]} 31... Bxf2 {[%clk 0:01:26.9]} 32.
Nf3 {[%clk 0:01:34.7]} 32... f6 {[%clk 0:01:15.9]} 33. Kc1 {[%clk 0:01:32.9]}
33... Be3+ {[%clk 0:01:06.7]} 34. Kd1 {[%clk 0:01:32]} 34... Kh7 {[%clk
0:01:07.6]} 35. b3 {[%clk 0:01:31.3]} 35... Kh6 {[%clk 0:01:03.7]} 36. Ke2
{[%clk 0:01:31.8]} 36... Bc1 {[%clk 0:01:03.3]} 37. a4 {[%clk 0:01:28.5]} 37...
e5 {[%clk 0:00:53.3]} 38. c4 {[%clk 0:01:21.1]} 38... Kxh5 {[%clk 0:00:48.7]}
39. b4 {[%clk 0:01:21.1]} 39... Ba3 {[%clk 0:00:46.1]} 40. b5 {[%clk 0:01:20.9]}
40... Kg4 {[%clk 0:00:24.1]} 41. bxa6 {[%clk 0:01:07.3]} 41... bxa6 {[%clk
0:00:22.9]} 42. Ke3 {[%clk 0:01:05.9]} 42... Bc5+ {[%clk 0:00:17.4]} 43. Ke4
{[%clk 0:01:01.8]} 43... f5+ {[%clk 0:00:17.7]} 44. Kxe5 {[%clk 0:01:00.4]}
44... Kxf3 {[%clk 0:00:17.1]} 45. Kxf5 {[%clk 0:01:01.3]} 45... a5 {[%clk
0:00:07.8]} 46. Kg6 {[%clk 0:00:57.7]} 46... Bd4 {[%clk 0:00:07.1]} 47. c5
{[%clk 0:00:54.8]} 47... Bxc5 {[%clk 0:00:05.5]} 48. Kxg7 {[%clk 0:00:55.7]}
48... Kg4 {[%clk 0:00:04.6]} 49. Kf6 {[%clk 0:00:52]} 49... Kxh4 {[%clk
0:00:04.8]} 50. Ke5 {[%clk 0:00:52.9]} 50... Bb4 {[%clk 0:00:05.7]} 51. Kd5
{[%clk 0:00:53.8]} 51... Kg4 {[%clk 0:00:06.6]} 52. Kc4 {[%clk 0:00:54.7]} 52...
Kf4 {[%clk 0:00:07.5]} 53. Kb3 {[%clk 0:00:55.6]} 53... Ke4 {[%clk 0:00:08.4]}
54. Ka2 {[%clk 0:00:56.5]} 54... Kd4 {[%clk 0:00:08.9]} 55. Kb3 {[%clk
0:00:57.4]} 55... Kd3 {[%clk 0:00:09.1]} 56. Kb2 {[%clk 0:00:57]} 56... Kc4
{[%clk 0:00:09.3]} 57. Ka2 {[%clk 0:00:57.9]} 57... Kc3 {[%clk 0:00:08.6]} 58.
Ka1 {[%clk 0:00:57.6]} 58... Kb3 {[%clk 0:00:09.5]} 59. Kb1 {[%clk 0:00:58.2]}
59... Kxa4 {[%clk 0:00:10.4]} 60. Ka1 {[%clk 0:00:58.9]} 60... Kb5 {[%clk
0:00:11.3]} 61. Ka2 {[%clk 0:00:59.4]} 61... a4 {[%clk 0:00:12.2]} 62. Kb2
{[%clk 0:01:00.3]} 62... Bc5 {[%clk 0:00:13.1]} 63. Ka2 {[%clk 0:01:01.2]} 63...
Kb4 {[%clk 0:00:14]} 64. Kb1 {[%clk 0:01:01.4]} 64... Bd4 {[%clk 0:00:14.9]} 65.
Ka2 {[%clk 0:01:01.9]} 65... a3 {[%clk 0:00:14.1]} 66. Kb1 {[%clk 0:01:02.5]}
66... Kb3 {[%clk 0:00:14.4]} 0-1

[Event "*** Titled Tuesday Blitz"]
[Site "Chess.com"]
[Date "2020.05.26"]
[Round "8"]
[White "Dmitry_M1"]
[Black "floplover"]
[Result "1/2-1/2"]
[WhiteElo "2389"]
[BlackElo "2252"]
[TimeControl "180+1"]
[EndTime "11:41:29 PDT"]
[Termination "Game drawn by repetition"]

1. d4 {[%clk 0:02:59.8]} 1... d5 {[%clk 0:02:59.3]} 2. c4 {[%clk 0:03:00]} 2...
e6 {[%clk 0:02:59.7]} 3. cxd5 {[%clk 0:03:00.1]} 3... exd5 {[%clk 0:02:59.4]} 4.
Nc3 {[%clk 0:03:00.8]} 4... Bb4 {[%clk 0:02:59]} 5. Nf3 {[%clk 0:02:54.4]} 5...
Nf6 {[%clk 0:02:58]} 6. Qa4+ {[%clk 0:02:53]} 6... Nc6 {[%clk 0:02:57.9]} 7. Bg5
{[%clk 0:02:52.7]} 7... h6 {[%clk 0:02:53.6]} 8. Bh4 {[%clk 0:02:34.9]} 8... g5
{[%clk 0:02:53.2]} 9. Bg3 {[%clk 0:02:34.7]} 9... Ne4 {[%clk 0:02:53.8]} 10. Rc1
{[%clk 0:02:23]} 10... h5 {[%clk 0:02:53.8]} 11. h4 {[%clk 0:01:41.1]} 11... g4
{[%clk 0:02:53.4]} 12. Ne5 {[%clk 0:01:35.6]} 12... Bxc3+ {[%clk 0:02:31.8]} 13.
bxc3 {[%clk 0:01:33.3]} 13... Nxg3 {[%clk 0:02:30.8]} 14. fxg3 {[%clk 0:01:26]}
14... Bd7 {[%clk 0:02:27.3]} 15. Nxc6 {[%clk 0:00:37]} 15... Bxc6 {[%clk
0:02:26.3]} 16. Qc2 {[%clk 0:00:36.8]} 16... Qd6 {[%clk 0:02:16.7]} 17. Qd3
{[%clk 0:00:14.7]} 17... O-O-O {[%clk 0:02:15]} 18. Kd2 {[%clk 0:00:14.6]} 18...
Rde8 {[%clk 0:02:02.3]} 19. Kc2 {[%clk 0:00:09.4]} 19... a6 {[%clk 0:01:41.6]}
20. Qf5+ {[%clk 0:00:07.5]} 20... Kb8 {[%clk 0:01:39.5]} 21. Qf4 {[%clk
0:00:07.9]} 21... Qa3 {[%clk 0:01:34]} 22. Kb1 {[%clk 0:00:06.1]} 22... Bb5
{[%clk 0:01:27.6]} 23. e3 {[%clk 0:00:05.8]} 23... Bxf1 {[%clk 0:01:15]} 24.
Rhxf1 {[%clk 0:00:06.7]} 24... Re6 {[%clk 0:01:14.8]} 25. Rf2 {[%clk 0:00:04.3]}
25... Rb6+ {[%clk 0:01:10.4]} 26. Kc2 {[%clk 0:00:04.7]} 26... Re8 {[%clk
0:00:35.2]} 27. Kd1 {[%clk 0:00:04.1]} 27... Rc6 {[%clk 0:00:27.9]} 28. Rfc2
{[%clk 0:00:03.9]} 28... Rce6 {[%clk 0:00:22.7]} 29. Kd2 {[%clk 0:00:03.6]}
29... Qe7 {[%clk 0:00:18.4]} 30. Re1 {[%clk 0:00:03.6]} 30... Ka7 {[%clk
0:00:17]} 31. Qg5 {[%clk 0:00:03.3]} 31... c5 {[%clk 0:00:15.6]} 32. Qxd5 {[%clk
0:00:02.2]} 32... cxd4 {[%clk 0:00:15.9]} 33. cxd4 {[%clk 0:00:02.5]} 33... Qb4+
{[%clk 0:00:14.6]} 34. Rc3 {[%clk 0:00:02.1]} 34... Rxe3 {[%clk 0:00:13.6]} 35.
Rxe3 {[%clk 0:00:02.1]} 35... Rxe3 {[%clk 0:00:14.1]} 36. Kxe3 {[%clk 0:00:02]}
36... Qxc3+ {[%clk 0:00:14.4]} 37. Kf4 {[%clk 0:00:02.4]} 37... Qd2+ {[%clk
0:00:13.8]} 38. Kf5 {[%clk 0:00:02.4]} 38... Qb2 {[%clk 0:00:11.8]} 39. Qc5+
{[%clk 0:00:02.2]} 39... Kb8 {[%clk 0:00:11.3]} 40. Qd6+ {[%clk 0:00:02.4]}
40... Ka8 {[%clk 0:00:10.8]} 41. Qd8+ {[%clk 0:00:02.7]} 41... Ka7 {[%clk
0:00:11]} 42. Qd6 {[%clk 0:00:03.2]} 42... Qxa2 {[%clk 0:00:10.7]} 43. Qc5+
{[%clk 0:00:03.3]} 43... Kb8 {[%clk 0:00:10]} 44. Qf8+ {[%clk 0:00:03.5]} 44...
Ka7 {[%clk 0:00:10.1]} 45. Qc5+ {[%clk 0:00:03.7]} 45... Ka8 {[%clk 0:00:09.8]}
46. Qf8+ {[%clk 0:00:03.9]} 46... Ka7 {[%clk 0:00:08.7]} 47. Qc5+ {[%clk
0:00:04.6]} 1/2-1/2

[Event "*** Titled Tuesday Blitz"]
[Site "Chess.com"]
[Date "2020.05.26"]
[Round "8"]
[White "bazar-wokzal"]
[Black "ClassyEl"]
[Result "0-1"]
[WhiteElo "2469"]
[BlackElo "2620"]
[TimeControl "180+1"]
[EndTime "11:41:30 PDT"]
[Termination "ClassyEl won on time"]

1. e4 {[%clk 0:03:00.9]} 1... d6 {[%clk 0:02:59.5]} 2. f4 {[%clk 0:03:00.2]}
2... c5 {[%clk 0:02:57.4]} 3. Nc3 {[%clk 0:02:57.4]} 3... g6 {[%clk 0:02:57.6]}
4. Nf3 {[%clk 0:02:56.8]} 4... Bg7 {[%clk 0:02:58]} 5. d3 {[%clk 0:02:55.9]}
5... Nc6 {[%clk 0:02:58.3]} 6. h3 {[%clk 0:02:56.1]} 6... e6 {[%clk 0:02:58.8]}
7. g4 {[%clk 0:02:56.2]} 7... Nge7 {[%clk 0:02:59.4]} 8. Bg2 {[%clk 0:02:56.4]}
8... Rb8 {[%clk 0:02:59.8]} 9. O-O {[%clk 0:02:56.1]} 9... b5 {[%clk 0:03:00.1]}
10. Be3 {[%clk 0:02:56]} 10... b4 {[%clk 0:02:58.1]} 11. Na4 {[%clk 0:02:55.4]}
11... Qa5 {[%clk 0:02:31.1]} 12. c3 {[%clk 0:02:51.4]} 12... bxc3 {[%clk
0:02:29.6]} 13. bxc3 {[%clk 0:02:49.5]} 13... Bd7 {[%clk 0:02:27.4]} 14. e5
{[%clk 0:02:43.6]} 14... Nd5 {[%clk 0:02:26.5]} 15. Bd2 {[%clk 0:02:28]} 15...
Nd8 {[%clk 0:02:14]} 16. c4 {[%clk 0:02:12.2]} 16... Qxa4 {[%clk 0:02:08.7]} 17.
cxd5 {[%clk 0:02:10.6]} 17... exd5 {[%clk 0:02:06.4]} 18. exd6 {[%clk
0:02:03.5]} 18... Bxa1 {[%clk 0:02:02.3]} 19. Qxa1 {[%clk 0:02:02.3]} 19... O-O
{[%clk 0:02:01.7]} 20. Ne5 {[%clk 0:01:58.1]} 20... d4 {[%clk 0:01:53.2]} 21.
Qe1 {[%clk 0:01:47.4]} 21... f6 {[%clk 0:01:49.1]} 22. Nxd7 {[%clk 0:01:14.3]}
22... Qxd7 {[%clk 0:01:48.4]} 23. Qe7 {[%clk 0:01:14]} 23... Qe6 {[%clk
0:01:14.7]} 24. f5 {[%clk 0:00:55.5]} 24... gxf5 {[%clk 0:00:51.6]} 25. Qxe6+
{[%clk 0:00:44.7]} 25... Nxe6 {[%clk 0:00:51.3]} 26. Bd5 {[%clk 0:00:44.2]}
26... Kg7 {[%clk 0:00:36.7]} 27. Bxe6 {[%clk 0:00:43.5]} 27... fxg4 {[%clk
0:00:37.2]} 28. Ba5 {[%clk 0:00:30.6]} 28... gxh3 {[%clk 0:00:30.9]} 29. d7
{[%clk 0:00:24.3]} 29... Kg6 {[%clk 0:00:17.1]} 30. Bxh3 {[%clk 0:00:21.7]}
30... f5 {[%clk 0:00:14.5]} 31. d8=Q {[%clk 0:00:18.2]} 31... Rbxd8 {[%clk
0:00:14]} 32. Bxd8 {[%clk 0:00:18.7]} 32... Rxd8 {[%clk 0:00:13.8]} 33. Bxf5+
{[%clk 0:00:19.1]} 33... Kg7 {[%clk 0:00:13.7]} 34. Be6 {[%clk 0:00:17.8]} 34...
Rd6 {[%clk 0:00:13.3]} 35. Rf7+ {[%clk 0:00:13.2]} 35... Kg6 {[%clk 0:00:13.6]}
36. Bc4 {[%clk 0:00:13.2]} 36... a6 {[%clk 0:00:12.6]} 37. Rc7 {[%clk
0:00:12.2]} 37... Rb6 {[%clk 0:00:10.8]} 38. Rxc5 {[%clk 0:00:11.6]} 38... Rb2
{[%clk 0:00:11.7]} 39. Rd5 {[%clk 0:00:11.4]} 39... h5 {[%clk 0:00:11.2]} 40.
Rxd4 {[%clk 0:00:11.3]} 40... Kg5 {[%clk 0:00:11.7]} 41. Kf1 {[%clk 0:00:10.3]}
41... a5 {[%clk 0:00:11.4]} 42. Bb3 {[%clk 0:00:09.5]} 42... h4 {[%clk
0:00:11.1]} 43. Kg1 {[%clk 0:00:09.5]} 43... h3 {[%clk 0:00:10.8]} 44. Ra4
{[%clk 0:00:08.9]} 44... Kf5 {[%clk 0:00:10.2]} 45. d4 {[%clk 0:00:04.9]} 45...
Kf4 {[%clk 0:00:09.9]} 46. d5+ {[%clk 0:00:05.3]} 46... Kg3 {[%clk 0:00:10.1]}
0-1

[Event "*** Titled Tuesday Blitz"]
[Site "Chess.com"]
[Date "2020.05.26"]
[Round "8"]
[White "DinaBelenkaya"]
[Black "Crazy_girl99"]
[Result "0-1"]
[WhiteElo "2257"]
[BlackElo "2405"]
[TimeControl "180+1"]
[EndTime "11:41:30 PDT"]
[Termination "Crazy_girl99 won on time"]

1. e4 {[%clk 0:03:00.9]} 1... e5 {[%clk 0:02:58.8]} 2. Nf3 {[%clk 0:03:00.3]}
2... Nc6 {[%clk 0:02:57.8]} 3. d4 {[%clk 0:03:00.5]} 3... exd4 {[%clk
0:02:57.2]} 4. Nxd4 {[%clk 0:03:01.4]} 4... Nf6 {[%clk 0:02:56.7]} 5. Nxc6
{[%clk 0:03:02]} 5... bxc6 {[%clk 0:02:55.9]} 6. Bd3 {[%clk 0:03:02.9]} 6... d5
{[%clk 0:02:54.7]} 7. exd5 {[%clk 0:03:03.5]} 7... cxd5 {[%clk 0:02:54.2]} 8.
O-O {[%clk 0:03:03.6]} 8... Be7 {[%clk 0:02:54.6]} 9. c4 {[%clk 0:03:03.8]} 9...
d4 {[%clk 0:02:52.2]} 10. b4 {[%clk 0:03:03.9]} 10... O-O {[%clk 0:02:51.6]} 11.
a3 {[%clk 0:02:58.6]} 11... a5 {[%clk 0:02:48.7]} 12. b5 {[%clk 0:02:58.1]}
12... Nd7 {[%clk 0:02:46.5]} 13. Qf3 {[%clk 0:02:38.7]} 13... Rb8 {[%clk
0:02:44.5]} 14. Re1 {[%clk 0:02:38.3]} 14... Bf6 {[%clk 0:02:40.7]} 15. Nd2
{[%clk 0:02:29.8]} 15... Ne5 {[%clk 0:02:37.4]} 16. Rxe5 {[%clk 0:02:11.7]}
16... Bxe5 {[%clk 0:02:38.3]} 17. Qe4 {[%clk 0:02:06.2]} 17... Bxh2+ {[%clk
0:02:19.7]} 18. Kxh2 {[%clk 0:02:02.1]} 18... g6 {[%clk 0:02:20]} 19. Qf4 {[%clk
0:01:51]} 19... Re8 {[%clk 0:02:00.4]} 20. Nf3 {[%clk 0:01:46.7]} 20... Rb6
{[%clk 0:01:46.5]} 21. Bb2 {[%clk 0:01:42.3]} 21... c5 {[%clk 0:01:31.5]} 22.
Bc1 {[%clk 0:01:04.4]} 22... Rf6 {[%clk 0:01:28.8]} 23. Qg3 {[%clk 0:01:01.6]}
23... Bf5 {[%clk 0:01:21.6]} 24. Bxf5 {[%clk 0:00:44]} 24... Rxf5 {[%clk
0:01:22.5]} 25. Bd2 {[%clk 0:00:41.4]} 25... a4 {[%clk 0:01:19.2]} 26. Rb1
{[%clk 0:00:35.1]} 26... Re6 {[%clk 0:01:13.7]} 27. Kg1 {[%clk 0:00:31.1]} 27...
Kg7 {[%clk 0:00:56.3]} 28. Rb2 {[%clk 0:00:27.5]} 28... Rh5 {[%clk 0:00:35.5]}
29. Qf4 {[%clk 0:00:13.6]} 29... Rf6 {[%clk 0:00:30.1]} 30. Qg4 {[%clk
0:00:12.4]} 30... Re6 {[%clk 0:00:20.3]} 31. g3 {[%clk 0:00:08.6]} 31... Rf5
{[%clk 0:00:18.8]} 32. Kg2 {[%clk 0:00:08.3]} 32... Qa8 {[%clk 0:00:18.4]} 33.
b6 {[%clk 0:00:06.7]} 33... h5 {[%clk 0:00:18.7]} 34. b7 {[%clk 0:00:05.5]}
34... Qxb7 {[%clk 0:00:17.2]} 35. Qxf5 {[%clk 0:00:04.3]} 35... Qxb2 {[%clk
0:00:16.8]} 36. Qxc5 {[%clk 0:00:04.5]} 36... d3 {[%clk 0:00:15.3]} 37. Qd4+
{[%clk 0:00:03.9]} 37... Qxd4 {[%clk 0:00:15]} 38. Nxd4 {[%clk 0:00:04.8]} 38...
Re8 {[%clk 0:00:15]} 39. c5 {[%clk 0:00:04.9]} 39... Rc8 {[%clk 0:00:15.9]} 40.
c6 {[%clk 0:00:04.9]} 40... Kf8 {[%clk 0:00:16.8]} 41. Bf4 {[%clk 0:00:04.8]}
41... f6 {[%clk 0:00:16.7]} 42. Kf1 {[%clk 0:00:04.8]} 42... Kf7 {[%clk
0:00:17.2]} 43. c7 {[%clk 0:00:04.6]} 43... Ke7 {[%clk 0:00:15.5]} 44. Nb5
{[%clk 0:00:02.8]} 44... g5 {[%clk 0:00:15.2]} 45. Bd6+ {[%clk 0:00:02.2]} 45...
Kd7 {[%clk 0:00:15.4]} 46. Ke1 {[%clk 0:00:02.4]} 46... Ra8 {[%clk 0:00:15]} 47.
Bb4 {[%clk 0:00:01.1]} 47... Kc6 {[%clk 0:00:15.4]} 48. Nd4+ {[%clk 0:00:01.3]}
48... Kxc7 {[%clk 0:00:15.7]} 49. Ne6+ {[%clk 0:00:02.2]} 49... Kc6 {[%clk
0:00:15.7]} 50. Nd4+ {[%clk 0:00:03.1]} 50... Kd5 {[%clk 0:00:15.8]} 51. Nf3
{[%clk 0:00:02.8]} 51... Kc4 {[%clk 0:00:16.7]} 52. Kd2 {[%clk 0:00:03]} 52...
Re8 {[%clk 0:00:17.6]} 53. Ne1 {[%clk 0:00:02.6]} 53... Re2+ {[%clk 0:00:17.7]}
54. Kd1 {[%clk 0:00:02.9]} 54... Rxf2 {[%clk 0:00:18.6]} 55. g4 {[%clk
0:00:01.1]} 55... Ra2 {[%clk 0:00:19.5]} 0-1

[Event "*** Titled Tuesday Blitz"]
[Site "Chess.com"]
[Date "2020.05.26"]
[Round "8"]
[White "Cocaino74"]
[Black "Alopekos"]
[Result "0-1"]
[WhiteElo "2367"]
[BlackElo "2514"]
[TimeControl "180+1"]
[EndTime "11:41:31 PDT"]
[Termination "Alopekos won by resignation"]

1. e4 {[%clk 0:03:00.9]} 1... c5 {[%clk 0:02:59.6]} 2. Nf3 {[%clk 0:03:00.9]}
2... e6 {[%clk 0:03:00.2]} 3. c3 {[%clk 0:03:00.3]} 3... Nf6 {[%clk 0:02:59.8]}
4. e5 {[%clk 0:03:00.4]} 4... Nd5 {[%clk 0:03:00.4]} 5. g3 {[%clk 0:03:00.1]}
5... d6 {[%clk 0:02:53.8]} 6. Bg2 {[%clk 0:02:54.3]} 6... Nc6 {[%clk 0:02:52.7]}
7. d4 {[%clk 0:02:49.3]} 7... cxd4 {[%clk 0:02:26.4]} 8. cxd4 {[%clk 0:02:48]}
8... g6 {[%clk 0:02:26.9]} 9. Nc3 {[%clk 0:02:37.4]} 9... Nxc3 {[%clk
0:02:25.2]} 10. bxc3 {[%clk 0:02:37.2]} 10... dxe5 {[%clk 0:02:20.6]} 11. Nxe5
{[%clk 0:02:36.8]} 11... Nxe5 {[%clk 0:02:19.9]} 12. dxe5 {[%clk 0:02:37.7]}
12... Qxd1+ {[%clk 0:02:12.6]} 13. Kxd1 {[%clk 0:02:38.6]} 13... Bc5 {[%clk
0:02:06.2]} 14. Ke2 {[%clk 0:02:29.3]} 14... Kd7 {[%clk 0:01:57.5]} 15. Rb1
{[%clk 0:02:04]} 15... Kc7 {[%clk 0:01:56.3]} 16. Rb5 {[%clk 0:02:03.3]} 16...
b6 {[%clk 0:01:36.9]} 17. Rxc5+ {[%clk 0:01:33.7]} 17... bxc5 {[%clk 0:01:37.8]}
18. Bxa8 {[%clk 0:01:34.2]} 18... Ba6+ {[%clk 0:01:37.2]} 19. Ke3 {[%clk
0:01:20.8]} 19... Rxa8 {[%clk 0:01:36.8]} 20. Ba3 {[%clk 0:01:11]} 20... Rd8
{[%clk 0:01:29.8]} 21. Bxc5 {[%clk 0:01:04.3]} 21... Rd3+ {[%clk 0:01:28.7]} 22.
Kf4 {[%clk 0:01:04.1]} 22... Rxc3 {[%clk 0:01:28.1]} 23. Bxa7 {[%clk 0:00:59.4]}
23... h6 {[%clk 0:01:16.2]} 24. Bd4 {[%clk 0:00:22.7]} 24... g5+ {[%clk
0:00:51.4]} 25. Kg4 {[%clk 0:00:20.4]} 25... Be2+ {[%clk 0:00:33.3]} 26. Kh3
{[%clk 0:00:17.5]} 26... Rc4 {[%clk 0:00:19.8]} 27. Be3 {[%clk 0:00:17.2]} 27...
Kb7 {[%clk 0:00:03.1]} 28. Rb1+ {[%clk 0:00:16.3]} 28... Ka6 {[%clk 0:00:03.4]}
29. Rb6+ {[%clk 0:00:10.2]} 29... Ka5 {[%clk 0:00:03.6]} 30. Rb7 {[%clk
0:00:10.9]} 30... Bh5 {[%clk 0:00:02.2]} 31. Kg2 {[%clk 0:00:05.8]} 31... Rc2
{[%clk 0:00:01.8]} 32. h3 {[%clk 0:00:05.2]} 32... Bg6 {[%clk 0:00:02.2]} 33.
Ra7+ {[%clk 0:00:04.3]} 33... Kb5 {[%clk 0:00:02.3]} 34. g4 {[%clk 0:00:03.9]}
34... Kc6 {[%clk 0:00:02.4]} 35. Kg3 {[%clk 0:00:02.9]} 35... Kd5 {[%clk
0:00:02.8]} 36. Ra5+ {[%clk 0:00:02.7]} 36... Ke4 {[%clk 0:00:02.5]} 37. Bc1
{[%clk 0:00:01.8]} 37... Rxc1 {[%clk 0:00:02.4]} 38. f3+ {[%clk 0:00:02.2]}
38... Ke3 {[%clk 0:00:02.8]} 39. Ra3+ {[%clk 0:00:01.9]} 39... Ke2 {[%clk
0:00:03.3]} 40. Ra4 {[%clk 0:00:01.6]} 40... Rg1+ {[%clk 0:00:03.6]} 41. Kh2
{[%clk 0:00:02]} 41... Rf1 {[%clk 0:00:03.8]} 42. Rb4 {[%clk 0:00:01.3]} 42...
Rxf3 {[%clk 0:00:03.9]} 43. Rb2+ {[%clk 0:00:01.7]} 43... Ke3 {[%clk 0:00:03.6]}
44. Rb3+ {[%clk 0:00:02.3]} 44... Kf4 {[%clk 0:00:04.2]} 45. Rxf3+ {[%clk
0:00:03]} 45... Kxf3 {[%clk 0:00:05.1]} 46. a4 {[%clk 0:00:03.8]} 46... Kf4
{[%clk 0:00:05.6]} 47. a5 {[%clk 0:00:04.7]} 47... Kxe5 {[%clk 0:00:06.2]} 48.
a6 {[%clk 0:00:05.5]} 48... Be4 {[%clk 0:00:06.9]} 49. a7 {[%clk 0:00:06.4]}
49... Kf4 {[%clk 0:00:07.2]} 0-1